Workbook

Sheet ROAR TH
B1: Version | C1: = | D1: 0.3
B3: Driver
B4: Frame Width | C4: = | D4: 46.7 | E4: cm | F4: =D4/2.54 -> 18.38582677 | G4: in | J4: Plot
B5: Mounting Width | C5: = | D5: 42.2 | E5: cm | F5: =D5/2.54 -> 16.61417323 | G5: in | I5: x | J5: Advanced Centerline
B6: Mounting Depth | C6: = | D6: 20.9 | E6: cm | F6: 8.228346457 | G6: in | I6: x | J6: Sample points
B7: Magnet Width | C7: = | D7: 24 | E7: cm | F7: 9.448818898 | G7: in | I7: x | J7: Driver
B8: Magnet Height | C8: = | D8: 6 | E8: cm | F8: 2.362204724 | G8: in
B10: Horn Parameters | J10: Plot
B11: S1 | C11: = | D11: =Path!D7 -> 616.2 | E11: cm^2 | F11: =D11/2.54^2 -> 95.51119102 | G11: in^2 | I11: x | J11: Panel A
B12: S2 | C12: = | D12: =Path!D8 -> 616.2 | E12: cm^2 | F12: =D12/2.54^2 -> 95.51119102 | G12: in^2 | I12: x | J12: Panel B (center)
B13: S3 | C13: = | D13: =Path!D9 -> 616.2 | E13: cm^2 | F13: =D13/2.54^2 -> 95.51119102 | G13: in^2 | I13: x | J13: Panel C
B14: S4 | C14: = | D14: =Path!D10 -> 2284.68 | E14: cm^2 | F14: 354.1261083 | G14: in^2 | I14: x | J14: Panel D
B15: S5 | C15: = | D15: =Path!D11 -> 2284.68 | E15: cm^2 | F15: =D15/2.54^2 -> 354.1261083 | G15: in^2 | I15: x | J15: Panel E
B16: L12 | C16: = | D16: =Path!G8 -> 0.1 | E16: cm | F16: =D16/2.54 -> 0.03937007874 | G16: in | I16: x | J16: Panel F (baffle)
B17: L23 | C17: = | D17: =Path!G9 -> 173.2410773 | E17: cm | F17: =D17/2.54 -> 68.20514854 | G17: in | I17: x | J17: Panel H
B18: L34 | C18: = | D18: =Path!G10 -> 26.76974391 | E18: cm | F18: =D18/2.54 -> 10.53926926 | G18: in | I18: x | J18: Panel I
B19: L45 | C19: = | D19: =Path!G11 -> 61.49678617 | E19: cm | F19: =D19/2.54 -> 24.21133314 | G19: in
B21: d (external) | C21: = | D21: 85 | E21: cm | F21: =D21/2.54 -> 33.46456693 | G21: in
B22: h (external) | C22: = | D22: 51 | E22: cm | F22: =D22/2.54 -> 20.07874016 | G22: in
B23: w (external) | C23: = | D23: 85 | E23: cm | F23: =D23/2.54 -> 33.46456693 | G23: in
B25: w (internal) | C25: = | D25: =D23-2*D28 -> 81.4 | E25: cm | F25: =D25/2.54 -> 32.04724409 | G25: in
B26: L (actual) | C26: = | D26: =Path!N93 -> 261.6076074 | E26: cm | F26: 102.995121 | G26: in
B28: p | C28: = | D28: 1.8 | E28: cm | F28: =D28/2.54 -> 0.7086614173 | G28: in | M28: =ABS(I42)+ABS(I43)+ABS(I44)+ABS(I45) -> 0.0002157623401
B30: Vol. (net) | C30: = | D30: =D31-K47 -> 290.2411764 | E30: l. | H30: =(D30*1000/2.54^3)/1728 -> 10.24977041 | I30: cu.ft.
B31: Vol. (gross) | C31: = | D31: =(D21*D22*D23)/10^3 -> 368.475 | E31: l. | H31: =(D31*1000/2.54^3)/1728 -> 13.01257182 | I31: cu.ft.
B32: Internal Width | C32: = | D32: =D22-2*E40 -> 47.4 | E32: cm
B34: Expansion 1 | C34: = | D34: 0
B35: Expansion 2 | C35: = | D35: =Path!I11 -> 0
B37: Panels | D37: x (cm) | E37: p (cm) | H37: y (cm) | I37: Err | J37: # | K37: v | L37: Panel
B38: =J11 -> Panel A | D38: =D22-2*D28 -> 47.4 | E38: =D28 -> 1.8 | H38: =Panels!K10 -> 81.4 | J38: 2 | K38: =H38*D38*D28*J38/10^3 -> 13.890096 | L38: (sides)
B39: Panel B (center) | D39: =D38 -> 47.4 | E39: =D28 -> 1.8 | H39: 6.5 | J39: 1 | K39: =D39*H39*$D$47*J39/10^3 -> 0.55458 | L39: (center)
B40: Panel C | D40: =Panels!K28 -> 85 | E40: =D28 -> 1.8 | H40: =Panels!K29 -> 85 | J40: 2 | K40: 26.01 | L40: (top, bottom)
B41: Panel D | D41: =D39 -> 47.4 | E41: =D28 -> 1.8 | H41: =D40 -> 85 | J41: 1 | K41: 7.2522 | L41: (back)
B42: Panel E | D42: =D39 -> 47.4 | E42: =D28 -> 1.8 | H42: 18.4 | I42: =Path!T60 -> 1.136868377e-13 | J42: 2 | K42: 3.139776 | L42: (front)
B43: Panel F (baffle) | D43: =D39 -> 47.4 | E43: =D28 -> 1.8 | H43: 68.4 | I43: =Path!T33 -> -1.250555215e-12 | J43: 1 | K43: 5.835888 | L43: 1st inside
B44: Panel H | D44: =D39 -> 47.4 | E44: =D28 -> 1.8 | H44: 66.6 | I44: =Path!T51 -> 1.364242053e-12 | J44: 2 | K44: 11.364624 | L44: 3rd inside
B45: Panel I | D45: =D39 -> 47.4 | E45: =D28 -> 1.8 | H45: 59.69678617 | I45: =Path!T78 -> 0.0002157623373 | J45: 2 | K45: 10.18665959 | L45: 3rd inside
B47: Thickness | D47: =D28 -> 1.8 | E47: cm. | J47: Pnl Vol | K47: =SUM(K38:K45) -> 78.23382359 | L47: l
B52: Cone Volume | C52: = | D52: 4000 | E52: cm^3
B53: Cone Vol. Adj. (S2) | C53: = | D53: 0 | E53: cm^3
B54: Cone Area Adj. (S2) | C54: = | D54: =D52-D53 -> 4000 | E54: cm^2
B66: Filename | C66: = | D66: I:\Users\Brian.Steele\OneDrive\Hornresp\Import\BOXPLAN.TXT
B68: ID | C68: = | D68: 29.00 | J68: =CONCATENATE(B68,C68,D68) -> ID=29.00
B69: Ang | C69: = | D69: 2.0 x PI | J69: =CONCATENATE(B69,C69,D69) -> Ang=2.0 x PI
B70: Eg | C70: = | D70: 2.83 | J70: Eg=2.83
B71: Rg | C71: = | D71: 0 | J71: Rg=0
B72: Fta | C72: = | D72: 0 | J72: Fta=0
B73: S1 | C73: = | D73: =ROUND(D11,0) -> 616 | J73: S1=616
B74: S2 | C74: = | D74: =ROUND(D12,0) -> 616 | J74: S2=616
B75: Par | C75: = | D75: =ROUND(D16,1) -> 0.1 | J75: Par=0.1
B76: F12 | C76: = | D76: 0 | J76: F12=0
B77: S2 | C77: = | D77: =D74 -> 616 | J77: S2=616
B78: S3 | C78: = | D78: =ROUND(D13,0) -> 616 | J78: S3=616
B79: Par | C79: = | D79: =ROUND(D17,1) -> 173.2 | J79: Par=173.2
B80: F23 | C80: = | D80: 0 | J80: F23=0
B81: S3 | C81: = | D81: =D78 -> 616 | J81: S3=616
B82: S4 | C82: = | D82: =ROUND(D14,0) -> 2285 | J82: S4=2285
B83: Par | C83: = | D83: =ROUND(D18,1) -> 26.8 | J83: Par=26.8
B84: F34 | C84: = | D84: 0 | J84: F34=0
B85: S4 | C85: = | D85: =D82 -> 2285 | J85: S4=2285
B86: S5 | C86: = | D86: =ROUND(D15,0) -> 2285 | J86: S5=2285
B87: Par | C87: = | D87: =ROUND(D19,1) -> 61.5 | J87: Par=61.5
B88: F45 | C88: = | D88: 0 | J88: F45=0
B89: Sd | C89: = | D89: 1210 | J89: Sd=1210
B90: Bl | C90: = | D90: 26.4 | J90: Bl=26.4
B91: Cms | C91: = | D91: 8.7e-05 | J91: Cms=0.000087
B92: Rms | C92: = | D92: 8.9 | J92: Rms=8.9
B93: Mmd | C93: = | D93: 243.16 | J93: Mmd=243.16
B94: Le | C94: = | D94: 1.64 | J94: Le=1.64
B95: Re | C95: = | D95: 3.2 | J95: Re=3.2
B96: TH | C96: = | D96: 1 | J96: TH=1
B97: Vrc | C97: = | D97: 0 | J97: Vrc=0
B98: Lrc | C98: = | D98: 0 | J98: Lrc=0
B99: Ap1 | C99: = | D99: 0 | J99: Ap1=0
B100: Lp | C100: = | D100: 0 | J100: Lp=0
B101: Vtc | C101: = | D101: =D52 -> 4000 | J101: Vtc=4000
B102: Atc | C102: = | D102: =D89 -> 1210 | J102: Atc=1210
B103: Pmax | C103: = | D103: 1000 | J103: Pmax=1000
B104: Xmax | C104: = | D104: 12 | J104: Xmax=12
B105: Comment | C105: = | D105: BOXPLAN-Export (7.2 Beta) | J105: Comment=BOXPLAN-Export (7.2 Beta)

Sheet Panels
C5: dX | D5: dY
C6: 0 | D6: 0
C8: x | D8: y | F8: x | G8: y | I8: dx | J8: dy
A9: ='ROAR TH'!J11 -> Panel A | C9: =C27-'ROAR TH'!$D$28 -> 83.2 | D9: =D27-'ROAR TH'!$D$28 -> 83.2 | F9: =IF('ROAR TH'!$I$11="x",C9,$C$6) -> 83.2 | G9: =IF('ROAR TH'!$I$11="x",D9,$D$6) -> 83.2
C10: =C9 -> 83.2 | D10: =D29+'ROAR TH'!$D$28 -> 1.8 | F10: =IF('ROAR TH'!$I$11="x",C10,$C$6) -> 83.2 | G10: =IF('ROAR TH'!$I$11="x",D10,$D$6) -> 1.8 | I10: =C9-C10 -> 0 | J10: 81.4 | K10: =(I10^2+J10^2)^0.5 -> 81.4
C11: =C10+'ROAR TH'!$D$28 -> 85 | D11: =D10 -> 1.8 | F11: =IF('ROAR TH'!$I$11="x",C11,$C$6) -> 85 | G11: =IF('ROAR TH'!$I$11="x",D11,$D$6) -> 1.8 | I11: -1.8 | J11: 0 | K11: =(I11^2+J11^2)^0.5 -> 1.8
C12: =C11 -> 85 | D12: =D9 -> 83.2 | F12: =IF('ROAR TH'!$I$11="x",C12,$C$6) -> 85 | G12: =IF('ROAR TH'!$I$11="x",D12,$D$6) -> 83.2 | I12: 0 | J12: -81.4 | K12: =(I12^2+J12^2)^0.5 -> 81.4
C13: =C9 -> 83.2 | D13: =D9 -> 83.2 | F13: =IF('ROAR TH'!$I$11="x",C13,$C$6) -> 83.2 | G13: =IF('ROAR TH'!$I$11="x",D13,$D$6) -> 83.2 | I13: 1.8 | J13: 0 | K13: =(I13^2+J13^2)^0.5 -> 1.8
A15: ='ROAR TH'!J11 -> Panel A | C15: =C28 -> 0 | D15: =D9 -> 83.2 | F15: =IF('ROAR TH'!$I$11="x",C15,$C$6) -> 0 | G15: =IF('ROAR TH'!$I$11="x",D15,$D$6) -> 83.2
C16: =C15 -> 0 | D16: =D35 -> 1.8 | F16: =IF('ROAR TH'!$I$11="x",C16,$C$6) -> 0 | G16: =IF('ROAR TH'!$I$11="x",D16,$D$6) -> 1.8 | I16: =C15-C16 -> 0 | J16: 81.4 | K16: =(I16^2+J16^2)^0.5 -> 81.4
C17: =C16+'ROAR TH'!$D$28 -> 1.8 | D17: =D16 -> 1.8 | F17: =IF('ROAR TH'!$I$11="x",C17,$C$6) -> 1.8 | G17: =IF('ROAR TH'!$I$11="x",D17,$D$6) -> 1.8 | I17: -1.8 | J17: 0 | K17: =(I17^2+J17^2)^0.5 -> 1.8
C18: =C17 -> 1.8 | D18: =D15 -> 83.2 | F18: =IF('ROAR TH'!$I$11="x",C18,$C$6) -> 1.8 | G18: =IF('ROAR TH'!$I$11="x",D18,$D$6) -> 83.2 | I18: 0 | J18: -81.4 | K18: =(I18^2+J18^2)^0.5 -> 81.4
C19: =C15 -> 0 | D19: =D15 -> 83.2 | F19: =IF('ROAR TH'!$I$11="x",C19,$C$6) -> 0 | G19: =IF('ROAR TH'!$I$11="x",D19,$D$6) -> 83.2 | I19: 1.8 | J19: 0 | K19: =(I19^2+J19^2)^0.5 -> 1.8
A21: ='ROAR TH'!J12 -> Panel B (center) | C21: =(C27+'ROAR TH'!$D$28)/2 -> 43.4 | D21: =D29+'ROAR TH'!$D$28 -> 1.8 | F21: =IF('ROAR TH'!$I$12="x",C21,$C$6) -> 43.4 | G21: =IF('ROAR TH'!$I$12="x",D21,$D$6) -> 1.8
C22: =C21 -> 43.4 | D22: =D21+'ROAR TH'!H39 -> 8.3 | F22: =IF('ROAR TH'!$I$12="x",C22,$C$6) -> 43.4 | G22: =IF('ROAR TH'!$I$12="x",D22,$D$6) -> 8.3 | I22: =C21-C22 -> 0 | J22: -6.5 | K22: =(I22^2+J22^2)^0.5 -> 6.5
C23: =C22-'ROAR TH'!$D$28 -> 41.6 | D23: =D22 -> 8.3 | F23: =IF('ROAR TH'!$I$12="x",C23,$C$6) -> 41.6 | G23: =IF('ROAR TH'!$I$12="x",D23,$D$6) -> 8.3 | I23: 1.8 | J23: 0 | K23: =(I23^2+J23^2)^0.5 -> 1.8
C24: =C23 -> 41.6 | D24: =D21 -> 1.8 | F24: =IF('ROAR TH'!$I$12="x",C24,$C$6) -> 41.6 | G24: =IF('ROAR TH'!$I$12="x",D24,$D$6) -> 1.8 | I24: 0 | J24: 6.5 | K24: =(I24^2+J24^2)^0.5 -> 6.5
C25: =C21 -> 43.4 | D25: =D24 -> 1.8 | F25: =IF('ROAR TH'!$I$12="x",C25,$C$6) -> 43.4 | G25: =IF('ROAR TH'!$I$12="x",D25,$D$6) -> 1.8 | I25: -1.8 | J25: 0 | K25: =(I25^2+J25^2)^0.5 -> 1.8
A27: ='ROAR TH'!J13 -> Panel C | C27: ='ROAR TH'!D23+$C$6 -> 85 | D27: ='ROAR TH'!D21 -> 85 | F27: =IF('ROAR TH'!$I$13="x",C27,$C$6) -> 85 | G27: =IF('ROAR TH'!$I$13="x",D27,$D$6) -> 85
C28: =C6 -> 0 | D28: =D27 -> 85 | F28: =IF('ROAR TH'!$I$13="x",C28,$C$6) -> 0 | G28: =IF('ROAR TH'!$I$13="x",D28,$D$6) -> 85 | I28: =C27-C28 -> 85 | J28: 0 | K28: =(I28^2+J28^2)^0.5 -> 85
C29: =C28 -> 0 | D29: =D6 -> 0 | F29: =IF('ROAR TH'!$I$13="x",C29,$C$6) -> 0 | G29: =IF('ROAR TH'!$I$13="x",D29,$D$6) -> 0 | I29: 0 | J29: 85 | K29: =(I29^2+J29^2)^0.5 -> 85
C30: =C27 -> 85 | D30: =D29 -> 0 | F30: =IF('ROAR TH'!$I$13="x",C30,$C$6) -> 85 | G30: =IF('ROAR TH'!$I$13="x",D30,$D$6) -> 0 | I30: -85 | J30: 0 | K30: =(I30^2+J30^2)^0.5 -> 85
C31: =C27 -> 85 | D31: =D27 -> 85 | F31: =IF('ROAR TH'!$I$13="x",C31,$C$6) -> 85 | G31: =IF('ROAR TH'!$I$13="x",D31,$D$6) -> 85 | I31: 0 | J31: -85 | K31: =(I31^2+J31^2)^0.5 -> 85
A33: ='ROAR TH'!J14 -> Panel D | C33: =C28 -> 0 | D33: =D29 -> 0 | F33: =IF('ROAR TH'!$I$14="x",C33,$C$6) -> 0 | G33: =IF('ROAR TH'!$I$14="x",D33,$D$6) -> 0
C34: =C27 -> 85 | D34: =D33 -> 0 | F34: =IF('ROAR TH'!$I$14="x",C34,$C$6) -> 85 | G34: =IF('ROAR TH'!$I$14="x",D34,$D$6) -> 0 | I34: =C33-C34 -> -85 | J34: 0 | K34: =(I34^2+J34^2)^0.5 -> 85
C35: =C34 -> 85 | D35: =D29+'ROAR TH'!$D$28 -> 1.8 | F35: =IF('ROAR TH'!$I$14="x",C35,$C$6) -> 85 | G35: =IF('ROAR TH'!$I$14="x",D35,$D$6) -> 1.8 | I35: 0 | J35: -1.8 | K35: =(I35^2+J35^2)^0.5 -> 1.8
C36: =C33 -> 0 | D36: =D35 -> 1.8 | F36: =IF('ROAR TH'!$I$14="x",C36,$C$6) -> 0 | G36: =IF('ROAR TH'!$I$14="x",D36,$D$6) -> 1.8 | I36: 85 | J36: 0 | K36: =(I36^2+J36^2)^0.5 -> 85
C37: =C33 -> 0 | D37: =D33 -> 0 | F37: =IF('ROAR TH'!$I$14="x",C37,$C$6) -> 0 | G37: =IF('ROAR TH'!$I$14="x",D37,$D$6) -> 0 | I37: 0 | J37: 1.8 | K37: =(I37^2+J37^2)^0.5 -> 1.8
A39: ='ROAR TH'!J15 -> Panel E | C39: =C31 -> 85 | D39: =D27 -> 85 | F39: =IF('ROAR TH'!$I$15="x",C39,$C$6) -> 85 | G39: =IF('ROAR TH'!$I$15="x",D39,$C$6) -> 85
C40: =C39-'ROAR TH'!H42 -> 66.6 | D40: =D39 -> 85 | F40: =IF('ROAR TH'!$I$15="x",C40,$C$6) -> 66.6 | G40: =IF('ROAR TH'!$I$15="x",D40,$C$6) -> 85 | I40: =C39-C40 -> 18.4 | J40: 0 | K40: =(I40^2+J40^2)^0.5 -> 18.4
C41: =C40 -> 66.6 | D41: =D40-'ROAR TH'!$D$28 -> 83.2 | F41: =IF('ROAR TH'!$I$15="x",C41,$C$6) -> 66.6 | G41: =IF('ROAR TH'!$I$15="x",D41,$C$6) -> 83.2 | I41: 0 | J41: 1.8 | K41: =(I41^2+J41^2)^0.5 -> 1.8
C42: =C39 -> 85 | D42: =D41 -> 83.2 | F42: =IF('ROAR TH'!$I$15="x",C42,$C$6) -> 85 | G42: =IF('ROAR TH'!$I$15="x",D42,$C$6) -> 83.2 | I42: -18.4 | J42: 0 | K42: =(I42^2+J42^2)^0.5 -> 18.4
C43: =C42 -> 85 | D43: =D40 -> 85 | F43: =IF('ROAR TH'!$I$15="x",C43,$C$6) -> 85 | G43: =IF('ROAR TH'!$I$15="x",D43,$C$6) -> 85 | I43: 0 | J43: -1.8 | K43: =(I43^2+J43^2)^0.5 -> 1.8
A45: =A39 -> Panel E | C45: =C29 -> 0 | D45: =D39 -> 85 | F45: =IF('ROAR TH'!$I$15="x",C45,$C$6) -> 0 | G45: =IF('ROAR TH'!$I$15="x",D45,$D$6) -> 85
C46: =C45+'ROAR TH'!H42 -> 18.4 | D46: =D45 -> 85 | F46: =IF('ROAR TH'!$I$15="x",C46,$C$6) -> 18.4 | G46: =IF('ROAR TH'!$I$15="x",D46,$D$6) -> 85 | I46: =C45-C46 -> -18.4 | J46: 0 | K46: =(I46^2+J46^2)^0.5 -> 18.4
C47: =C46 -> 18.4 | D47: =D46-'ROAR TH'!$D$28 -> 83.2 | F47: =IF('ROAR TH'!$I$15="x",C47,$C$6) -> 18.4 | G47: =IF('ROAR TH'!$I$15="x",D47,$D$6) -> 83.2 | I47: 0 | J47: 1.8 | K47: =(I47^2+J47^2)^0.5 -> 1.8
C48: =C45 -> 0 | D48: =D47 -> 83.2 | F48: =IF('ROAR TH'!$I$15="x",C48,$C$6) -> 0 | G48: =IF('ROAR TH'!$I$15="x",D48,$D$6) -> 83.2 | I48: 18.4 | J48: 0 | K48: =(I48^2+J48^2)^0.5 -> 18.4
C49: =C45 -> 0 | D49: =D45 -> 85 | F49: =IF('ROAR TH'!$I$15="x",C49,$C$6) -> 0 | G49: =IF('ROAR TH'!$I$15="x",D49,$D$6) -> 85 | I49: 0 | J49: -1.8 | K49: =(I49^2+J49^2)^0.5 -> 1.8
A51: ='ROAR TH'!J16 -> Panel F (baffle) | C51: =C21+('ROAR TH'!H43-'ROAR TH'!$D$28)/2 -> 76.7 | D51: =D22 -> 8.3 | F51: =IF('ROAR TH'!$I$16="x",C51,$C$6) -> 76.7 | G51: =IF('ROAR TH'!$I$16="x",D51,$D$6) -> 8.3
C52: =C51 -> 76.7 | D52: =D51+'ROAR TH'!$D$28 -> 10.1 | F52: =IF('ROAR TH'!$I$16="x",C52,$C$6) -> 76.7 | G52: =IF('ROAR TH'!$I$16="x",D52,$D$6) -> 10.1 | I52: =C51-C52 -> 0 | J52: -1.8 | K52: =(I52^2+J52^2)^0.5 -> 1.8
C53: =C52-'ROAR TH'!H43 -> 8.3 | D53: =D52 -> 10.1 | F53: =IF('ROAR TH'!$I$16="x",C53,$C$6) -> 8.3 | G53: =IF('ROAR TH'!$I$16="x",D53,$D$6) -> 10.1 | I53: 68.4 | J53: 0 | K53: =(I53^2+J53^2)^0.5 -> 68.4
C54: =C53 -> 8.3 | D54: =D53-'ROAR TH'!$D$28 -> 8.3 | F54: =IF('ROAR TH'!$I$16="x",C54,$C$6) -> 8.3 | G54: =IF('ROAR TH'!$I$16="x",D54,$D$6) -> 8.3 | I54: 0 | J54: 1.8 | K54: =(I54^2+J54^2)^0.5 -> 1.8
C55: =C51 -> 76.7 | D55: =D51 -> 8.3 | F55: =IF('ROAR TH'!$I$16="x",C55,$C$6) -> 76.7 | G55: =IF('ROAR TH'!$I$16="x",D55,$D$6) -> 8.3 | I55: -68.4 | J55: 0 | K55: =(I55^2+J55^2)^0.5 -> 68.4
A57: ='ROAR TH'!J17 -> Panel H | C57: =C53 -> 8.3 | D57: =D53 -> 10.1 | F57: =IF('ROAR TH'!$I$17="x",C57,$C$6) -> 8.3 | G57: =IF('ROAR TH'!$I$17="x",D57,$D$6) -> 10.1
C58: =C57+'ROAR TH'!$H$35 -> 8.3 | D58: =D57+'ROAR TH'!H44 -> 76.7 | F58: =IF('ROAR TH'!$I$17="x",C58,$C$6) -> 8.3 | G58: =IF('ROAR TH'!$I$17="x",D58,$D$6) -> 76.7 | I58: =C57-C58 -> 0 | J58: -66.6 | K58: =(I58^2+J58^2)^0.5 -> 66.6
C59: =C58+'ROAR TH'!$D$28 -> 10.1 | D59: =D58 -> 76.7 | F59: =IF('ROAR TH'!$I$17="x",C59,$C$6) -> 10.1 | G59: =IF('ROAR TH'!$I$17="x",D59,$D$6) -> 76.7 | I59: -1.8 | J59: 0 | K59: =(I59^2+J59^2)^0.5 -> 1.8
C60: =C59 -> 10.1 | D60: =D57 -> 10.1 | F60: =IF('ROAR TH'!$I$17="x",C60,$C$6) -> 10.1 | G60: =IF('ROAR TH'!$I$17="x",D60,$D$6) -> 10.1 | I60: 0 | J60: 66.6 | K60: =(I60^2+J60^2)^0.5 -> 66.6
C61: =C57 -> 8.3 | D61: =D57 -> 10.1 | F61: =IF('ROAR TH'!$I$17="x",C61,$C$6) -> 8.3 | G61: =IF('ROAR TH'!$I$17="x",D61,$D$6) -> 10.1 | I61: 1.8 | J61: 0 | K61: =(I61^2+J61^2)^0.5 -> 1.8
A63: =A57 -> Panel H | C63: =C57+'ROAR TH'!H43-'ROAR TH'!D28 -> 74.9 | D63: =D57 -> 10.1 | F63: =IF('ROAR TH'!$I$17="x",C63,$C$6) -> 74.9 | G63: =IF('ROAR TH'!$I$17="x",D63,$D$6) -> 10.1
C64: =C63+'ROAR TH'!$H$35 -> 74.9 | D64: =D58 -> 76.7 | F64: =IF('ROAR TH'!$I$17="x",C64,$C$6) -> 74.9 | G64: =IF('ROAR TH'!$I$17="x",D64,$D$6) -> 76.7 | I64: =C63-C64 -> 0 | J64: -66.6 | K64: =(I64^2+J64^2)^0.5 -> 66.6
C65: =C64+'ROAR TH'!$D$28 -> 76.7 | D65: =D59 -> 76.7 | F65: =IF('ROAR TH'!$I$17="x",C65,$C$6) -> 76.7 | G65: =IF('ROAR TH'!$I$17="x",D65,$D$6) -> 76.7 | I65: -1.8 | J65: 0 | K65: =(I65^2+J65^2)^0.5 -> 1.8
C66: =C65 -> 76.7 | D66: 10.1 | F66: =IF('ROAR TH'!$I$17="x",C66,$C$6) -> 76.7 | G66: =IF('ROAR TH'!$I$17="x",D66,$D$6) -> 10.1 | I66: 0 | J66: 66.6 | K66: =(I66^2+J66^2)^0.5 -> 66.6
C67: =C63 -> 74.9 | D67: =D61 -> 10.1 | F67: =IF('ROAR TH'!$I$17="x",C67,$C$6) -> 74.9 | G67: =IF('ROAR TH'!$I$17="x",D67,$D$6) -> 10.1 | I67: 1.8 | J67: 0 | K67: =(I67^2+J67^2)^0.5 -> 1.8
A69: ='ROAR TH'!J18 -> Panel I | C69: =C41 -> 66.6 | D69: =D41 -> 83.2 | F69: =IF('ROAR TH'!$I$18="x",C69,$C$6) -> 66.6 | G69: =IF('ROAR TH'!$I$18="x",D69,$D$6) -> 83.2
C70: =C69+'ROAR TH'!$H$35 -> 66.6 | D70: =D69-'ROAR TH'!H45 -> 23.50321383 | F70: =IF('ROAR TH'!$I$18="x",C70,$C$6) -> 66.6 | G70: =IF('ROAR TH'!$I$18="x",D70,$D$6) -> 23.50321383 | I70: =C69-C70 -> 0 | J70: 59.69678617 | K70: =(I70^2+J70^2)^0.5 -> 59.69678617
C71: =C70+'ROAR TH'!$D$28 -> 68.4 | D71: =D70 -> 23.50321383 | F71: =IF('ROAR TH'!$I$18="x",C71,$C$6) -> 68.4 | G71: =IF('ROAR TH'!$I$18="x",D71,$D$6) -> 23.50321383 | I71: -1.8 | J71: 0 | K71: =(I71^2+J71^2)^0.5 -> 1.8
C72: =C71 -> 68.4 | D72: =D69 -> 83.2 | F72: =IF('ROAR TH'!$I$18="x",C72,$C$6) -> 68.4 | G72: =IF('ROAR TH'!$I$18="x",D72,$D$6) -> 83.2 | I72: 0 | J72: -59.69678617 | K72: =(I72^2+J72^2)^0.5 -> 59.69678617
C73: =C69 -> 66.6 | D73: =D69 -> 83.2 | F73: =IF('ROAR TH'!$I$18="x",C73,$C$6) -> 66.6 | G73: =IF('ROAR TH'!$I$18="x",D73,$D$6) -> 83.2 | I73: 1.8 | J73: 0 | K73: =(I73^2+J73^2)^0.5 -> 1.8
A75: =A69 -> Panel I | C75: =C47-'ROAR TH'!D28 -> 16.6 | D75: =D69 -> 83.2 | F75: =IF('ROAR TH'!$I$18="x",C75,$C$6) -> 16.6 | G75: =IF('ROAR TH'!$I$18="x",D75,$D$6) -> 83.2
C76: =C75+'ROAR TH'!$H$35 -> 16.6 | D76: =D70 -> 23.50321383 | F76: =IF('ROAR TH'!$I$18="x",C76,$C$6) -> 16.6 | G76: =IF('ROAR TH'!$I$18="x",D76,$D$6) -> 23.50321383 | I76: =C75-C76 -> 0 | J76: 59.69678617 | K76: =(I76^2+J76^2)^0.5 -> 59.69678617
C77: =C76+'ROAR TH'!$D$28 -> 18.4 | D77: =D71 -> 23.50321383 | F77: =IF('ROAR TH'!$I$18="x",C77,$C$6) -> 18.4 | G77: =IF('ROAR TH'!$I$18="x",D77,$D$6) -> 23.50321383 | I77: -1.8 | J77: 0 | K77: =(I77^2+J77^2)^0.5 -> 1.8
C78: =C77 -> 18.4 | D78: 83.2 | F78: =IF('ROAR TH'!$I$18="x",C78,$C$6) -> 18.4 | G78: =IF('ROAR TH'!$I$18="x",D78,$D$6) -> 83.2 | I78: 0 | J78: -59.69678617 | K78: =(I78^2+J78^2)^0.5 -> 59.69678617
C79: =C75 -> 16.6 | D79: =D73 -> 83.2 | F79: =IF('ROAR TH'!$I$18="x",C79,$C$6) -> 16.6 | G79: =IF('ROAR TH'!$I$18="x",D79,$D$6) -> 83.2 | I79: 1.8 | J79: 0 | K79: =(I79^2+J79^2)^0.5 -> 1.8
A81: Vertical Divider | C81: =(C28+C27)/2 -> 42.5 | D81: =D52 -> 10.1 | F81: =C81 -> 42.5 | G81: =D81 -> 10.1
C82: =C81 -> 42.5 | D82: =D27 -> 85 | F82: =C82 -> 42.5 | G82: =D82 -> 85
A84: Vertical Axis | C84: =C29 -> 0 | D84: =D29 -> 0 | F84: =C84 -> 0 | G84: =D84 -> 0
C85: =C84 -> 0 | D85: =MAX(C9:D49) -> 85 | F85: =C85 -> 0 | G85: =D85 -> 85
A87: Horizontal Axis | C87: =C84 -> 0 | D87: =D84 -> 0 | F87: =C87 -> 0 | G87: =D87 -> 0
C88: =D85 -> 85 | D88: =C85 -> 0 | F88: =C88 -> 85 | G88: =D88 -> 0
C91: x | D91: y | E91: dX | F91: dY | G91: l | H91: Delta
C92: =C52 -> 76.7 | D92: =D52 -> 10.1
C93: =C53 -> 8.3 | D93: =D53 -> 10.1 | E93: =C92-C93 -> 68.4 | F93: =D92-D93 -> 0 | G93: =(E93^2+F93^2)^0.5 -> 68.4 | H93: =F93/E93 -> 0
E97: ='ROAR TH'!I7 -> x
C98: =C99+('ROAR TH'!$D$4*COS(ATAN($H$93)))/2+C95 -> 65.85 | D98: =D99+('ROAR TH'!$D$4*SIN(ATAN($H$93)))/2 -> 10.1 | E98: =$E$97 -> x | F98: =IF(E98="x",C98,"") -> 65.85 | G98: =IF(E98="x",D98,"") -> 10.1
C99: =(C53+C52)/2 -> 42.5 | D99: =D92-(F93*'ROAR TH'!D16/G93)-D95 -> 10.1 | E99: x | F99: =IF(E99="x",C99,"") -> 42.5 | G99: =IF(E99="x",D99,"") -> 10.1
C100: =C99+'ROAR TH'!$D$6*SIN(ATAN($H$93)) -> 42.5 | D100: =D99+'ROAR TH'!$D$6*COS(ATAN($H$93)) -> 31 | E100: x | F100: 42.5 | G100: 31
C101: =C100+'ROAR TH'!$D$7*COS(ATAN($H$93))/2 -> 54.5 | D101: =D100+'ROAR TH'!$D$7*SIN(ATAN($H$93))/2 -> 31 | E101: x | F101: 54.5 | G101: 31
C102: =C101-'ROAR TH'!$D$8*SIN(ATAN($H$93)) -> 54.5 | D102: =D101-'ROAR TH'!$D$8*COS(ATAN($H$93)) -> 25 | E102: x | F102: 54.5 | G102: 25
C103: =C99+'ROAR TH'!$D$5*COS(ATAN($H$93))/2 -> 63.6 | D103: =D99+('ROAR TH'!$D$5)*SIN(ATAN($H$93))/2 -> 10.1 | E103: x | F103: 63.6 | G103: 10.1
C105: =C106-('ROAR TH'!$D$4*COS(ATAN($H$93)))/2 -> 19.15 | D105: =D106-('ROAR TH'!$D$4*SIN(ATAN($H$93)))/2 -> 10.1 | E105: =$E$97 -> x | F105: =IF(E105="x",C105,"") -> 19.15 | G105: =IF(E105="x",D105,"") -> 10.1
C106: =C99 -> 42.5 | D106: =D99 -> 10.1 | E106: x | F106: 42.5 | G106: 10.1
C107: =C100 -> 42.5 | D107: =D100 -> 31 | E107: x | F107: 42.5 | G107: 31
C108: =C107-'ROAR TH'!$D$7*COS(ATAN($H$93))/2 -> 30.5 | D108: =D107-'ROAR TH'!$D$7*SIN(ATAN($H$93))/2 -> 31 | E108: x | F108: 30.5 | G108: 31
C109: =C108-'ROAR TH'!$D$8*SIN(ATAN($H$93)) -> 30.5 | D109: =D108-'ROAR TH'!$D$8*COS(ATAN($H$93)) -> 25 | E109: x | F109: 30.5 | G109: 25
C110: =C106-'ROAR TH'!$D$5*COS(ATAN($H$93))/2 -> 21.4 | D110: =D106-('ROAR TH'!$D$5)*SIN(ATAN($H$93))/2 -> 10.1 | E110: x | F110: 21.4 | G110: 10.1
C112: =C109 -> 30.5 | D112: =D109 -> 25 | E112: =$E$97 -> x | F112: =IF(E112="x",C112,"") -> 30.5 | G112: =IF(E112="x",D112,"") -> 25
C113: =C102 -> 54.5 | D113: =D102 -> 25 | E113: =$E$97 -> x | F113: 54.5 | G113: 25

Sheet Path
C2: Cos | D2: =COS('ROAR TH'!D34*PI()/180) -> 1 | E2: ='ROAR TH'!D28*D2 -> 1.8 | G2: Cos | H2: =COS('ROAR TH'!D34*PI()/(180*2)) -> 1 | I2: ='ROAR TH'!D28*H2 -> 1.8
C3: Sin | D3: =SIN('ROAR TH'!D34*PI()/180) -> 0 | E3: ='ROAR TH'!D28*D3 -> 0 | G3: Sin | H3: =SIN('ROAR TH'!D34*PI()/(180*2)) -> 0 | I3: ='ROAR TH'!D28*H3 -> 0
C4: tan | D4: =TAN('ROAR TH'!D34*PI()/180) -> 0 | G4: tan | H4: =TAN('ROAR TH'!D34*PI()/(180*2)) -> 0
D6: S | E6: L | F6: W | G6: d | H6: y
C7: S1 | D7: =Q21 -> 616.2 | E7: 0 | F7: =$O$14 -> 47.4 | H7: =D7/F7 -> 13
C8: S2 | D8: =Q21 -> 616.2 | E8: 0.1 | F8: 47.4 | G8: =E8-E7 -> 0.1 | H8: 13 | I8: =ATAN((H8-H7)/(E8-E7))*180/PI() -> 0
C9: S3 | D9: =Q66 -> 616.2 | E9: =N66 -> 173.3410773 | F9: 47.4 | G9: =E9-E8 -> 173.2410773 | H9: 13 | I9: =ATAN((H9-H8)/(E9-E8))*180/PI() -> -1.174984033e-15
C10: S4 | D10: =Q87 -> 2284.68 | E10: =N87 -> 200.1108212 | F10: 47.4 | G10: =E10-E9 -> 26.76974391 | H10: 48.2 | I10: =ATAN((H10-H9)/(E10-E9))*180/PI() -> 52.74686282
C11: S5 | D11: =Q93 -> 2284.68 | E11: =N93 -> 261.6076074 | F11: 47.4 | G11: =E11-E10 -> 61.49678617 | H11: 48.2 | I11: =ATAN((H11-H10)/(E11-E10))*180/PI() -> 0
O13: W
O14: ='ROAR TH'!D32 -> 47.4
A15: Path Calculations | C15: x | D15: y | F15: x | G15: y | I15: d | J15: x | K15: y | L15: dS | M15: d | N15: L | O15: W | P15: p | Q15: S | T15: Error
E17: S1 (csa)
N18: =-N24 -> -33.3 | O18: =$O$14 -> 47.4 | P18: 2 | Q18: ='ROAR TH'!D11 -> 616.2 | R18: =Q18/2 -> 308.1 | S18: =-R18 -> -308.1 | U18: =(($D$9-$D$7)*N18/$E$9+$D$7)/2 -> 308.1 | V18: =-U18 -> -308.1
C19: =Panels!C22 -> 43.4 | D19: =Panels!D22 -> 8.3 | F19: =IF('ROAR TH'!$I$6="x",C19,0) -> 43.4 | G19: =IF('ROAR TH'!$I$6="x",D19,0) -> 8.3 | H19: =SUM(C19:C20)/2 -> 43.4 | I19: =SUM(D19:D20)/2 -> 5.05 | J19: =IF('ROAR TH'!$I$5="x",H19,"") -> 43.4 | K19: =IF('ROAR TH'!$I$5="x",I19,"") -> 5.05
A20: =A23+1 -> 25 | B20: 1 | C20: =Panels!C21 -> 43.4 | D20: =Panels!D21 -> 1.8 | E20: S1, S2 | F20: =IF('ROAR TH'!$I$6="x",C20,0) -> 43.4 | G20: =IF('ROAR TH'!$I$6="x",D20,0) -> 1.8 | J20: =J19 -> 43.4 | K20: =K19 -> 5.05
J21: =J20 -> 43.4 | K21: =K20 -> 5.05 | M21: 0 | N21: =M21 -> 0 | O21: =$O$14 -> 47.4 | P21: 2 | Q21: =((C19-C20)^2+(D19-D20)^2)^0.5*O21*P21 -> 616.2 | R21: =Q21/2 -> 308.1 | S21: =-R21 -> -308.1 | T21: =(U21-R21)*2 -> 0 | U21: =$D$7/2 -> 308.1 | V21: =-U21 -> -308.1
C22: =Panels!C51 -> 76.7 | D22: =Panels!D51 -> 8.3 | F22: =IF('ROAR TH'!$I$6="x",C22,0) -> 76.7 | G22: =IF('ROAR TH'!$I$6="x",D22,0) -> 8.3 | H22: =SUM(C22:C23)/2 -> 76.7 | I22: =SUM(D22:D23)/2 -> 5.05 | J22: =IF('ROAR TH'!$I$5="x",H22,"") -> 76.7 | K22: =IF('ROAR TH'!$I$5="x",I22,"") -> 5.05 | M22: =M21 -> 0 | N22: =N21 -> 0 | Q22: =Q21 -> 616.2 | R22: 308.1 | S22: -308.1 | T22: =(U22-R22)*2 -> 0 | U22: =$D$7/2 -> 308.1 | V22: -308.1
A23: 24 | B23: =B20+1 -> 2 | C23: =C22 -> 76.7 | D23: =D20 -> 1.8 | F23: =IF('ROAR TH'!$I$6="x",C23,0) -> 76.7 | G23: =IF('ROAR TH'!$I$6="x",D23,0) -> 1.8 | J23: =J22 -> 76.7 | K23: =K22 -> 5.05 | M23: =M22 -> 0 | N23: =N22 -> 0 | Q23: =Q22 -> 616.2 | R23: 308.1 | S23: -308.1 | T23: 0 | U23: 308.1 | V23: -308.1
J24: =J23 -> 76.7 | K24: =K23 -> 5.05 | M24: =((H22-H19)^2+(I22-I19)^2)^0.5 -> 33.3 | N24: =N21+M24 -> 33.3 | O24: =$O$14 -> 47.4 | P24: 2 | Q24: =((C22-C23)^2+(D22-D23)^2)^0.5*O24*P24 -> 616.2 | R24: 308.1 | S24: -308.1 | T24: 0 | U24: 308.1 | V24: -308.1
C25: =C22 -> 76.7 | D25: =D22 -> 8.3 | F25: =IF('ROAR TH'!$I$6="x",C25,0) -> 76.7 | G25: =IF('ROAR TH'!$I$6="x",D25,0) -> 8.3 | H25: =SUM(C25:C26)/2 -> 78.325 | I25: =SUM(D25:D26)/2 -> 5.05 | J25: =IF('ROAR TH'!$I$5="x",H25,"") -> 78.325 | K25: =IF('ROAR TH'!$I$5="x",I25,"") -> 5.05 | M25: =M24 -> 33.3 | N25: =N24 -> 33.3 | Q25: =Q24 -> 616.2 | R25: =Q25/2 -> 308.1 | S25: =-R25 -> -308.1 | T25: =(U25-R25)*2 -> 0 | U25: 308.1 | V25: =-U25 -> -308.1
A26: 23 | B26: =B23+1 -> 3 | C26: =(C23+Panels!C10)/2 -> 79.95 | D26: =D20 -> 1.8 | F26: =IF('ROAR TH'!$I$6="x",C26,0) -> 79.95 | G26: =IF('ROAR TH'!$I$6="x",D26,0) -> 1.8 | J26: =J25 -> 78.325 | K26: =K25 -> 5.05 | M26: =M25 -> 33.3 | N26: =N25 -> 33.3 | Q26: =Q25 -> 616.2 | R26: 308.1 | S26: -308.1 | T26: 0 | U26: 308.1 | V26: -308.1
J27: =J26 -> 78.325 | K27: =K26 -> 5.05 | M27: =((H25-H22)^2+(I25-I22)^2)^0.5 -> 1.625 | N27: =N24+M27 -> 34.925 | O27: =$O$14 -> 47.4 | P27: 2 | Q27: =((C25-C26)^2+(D25-D26)^2)^0.5*O27*P27 -> 688.9325439 | R27: 344.4662719 | S27: -344.4662719 | T27: -72.73254387 | U27: 308.1 | V27: -308.1
C28: =C25 -> 76.7 | D28: =D25 -> 8.3 | F28: =IF('ROAR TH'!$I$6="x",C28,0) -> 76.7 | G28: =IF('ROAR TH'!$I$6="x",D28,0) -> 8.3 | H28: =SUM(C28:C29)/2 -> 79.95 | I28: =SUM(D28:D29)/2 -> 6.675 | J28: =IF('ROAR TH'!$I$5="x",H28,"") -> 79.95 | K28: =IF('ROAR TH'!$I$5="x",I28,"") -> 6.675 | M28: =M27 -> 1.625 | N28: =N27 -> 34.925 | Q28: =Q27 -> 688.9325439 | R28: 344.4662719 | S28: -344.4662719 | T28: -72.73254387 | U28: 308.1 | V28: -308.1
A29: =A32+1 -> 22 | B29: =B26+1 -> 4 | C29: =Panels!C10 -> 83.2 | D29: =(D25+D26)/2 -> 5.05 | F29: =IF('ROAR TH'!$I$6="x",C29,0) -> 83.2 | G29: =IF('ROAR TH'!$I$6="x",D29,0) -> 5.05 | J29: =J28 -> 79.95 | K29: =K28 -> 6.675 | M29: =M28 -> 1.625 | N29: =N28 -> 34.925 | Q29: =Q28 -> 688.9325439 | R29: 344.4662719 | S29: -344.4662719 | T29: -72.73254387 | U29: 308.1 | V29: -308.1
J30: =J29 -> 79.95 | K30: =K29 -> 6.675 | M30: =((H28-H25)^2+(I28-I25)^2)^0.5 -> 2.298097039 | N30: =N27+M30 -> 37.22309704 | O30: =$O$14 -> 47.4 | P30: 2 | Q30: =((C28-C29)^2+(D28-D29)^2)^0.5*O30*P30 -> 688.9325439 | R30: 344.4662719 | S30: -344.4662719 | T30: -72.73254387 | U30: 308.1 | V30: -308.1
C31: =C28 -> 76.7 | D31: =D28 -> 8.3 | F31: =IF('ROAR TH'!$I$6="x",C31,0) -> 76.7 | G31: =IF('ROAR TH'!$I$6="x",D31,0) -> 8.3 | H31: =SUM(C31:C32)/2 -> 79.95 | I31: =SUM(D31:D32)/2 -> 8.3 | J31: =IF('ROAR TH'!$I$5="x",H31,"") -> 79.95 | K31: =IF('ROAR TH'!$I$5="x",I31,"") -> 8.3 | M31: =M30 -> 2.298097039 | N31: =N30 -> 37.22309704 | Q31: =Q30 -> 688.9325439 | R31: 344.4662719 | S31: -344.4662719 | T31: -72.73254387 | U31: 308.1 | V31: -308.1
A32: =A35+1 -> 21 | B32: =B29+1 -> 5 | C32: =Panels!C13 -> 83.2 | D32: =D31 -> 8.3 | F32: =IF('ROAR TH'!$I$6="x",C32,0) -> 83.2 | G32: =IF('ROAR TH'!$I$6="x",D32,0) -> 8.3 | J32: =J31 -> 79.95 | K32: =K31 -> 8.3 | M32: =M31 -> 2.298097039 | N32: =N31 -> 37.22309704 | Q32: =Q31 -> 688.9325439 | R32: 344.4662719 | S32: -344.4662719 | T32: -72.73254387 | U32: 308.1 | V32: -308.1
J33: =J32 -> 79.95 | K33: =K32 -> 8.3 | M33: =((H31-H28)^2+(I31-I28)^2)^0.5 -> 1.625 | N33: =N30+M33 -> 38.84809704 | O33: =$O$14 -> 47.4 | P33: 2 | Q33: =((C31-C32)^2+(D31-D32)^2)^0.5*O33*P33 -> 616.2 | R33: 308.1 | S33: -308.1 | T33: -1.250555215e-12 | U33: 308.1 | V33: -308.1
C34: =Panels!C10 -> 83.2 | D34: =D35 -> 76.7 | F34: =IF('ROAR TH'!$I$6="x",C34,0) -> 83.2 | G34: =IF('ROAR TH'!$I$6="x",D34,0) -> 76.7 | H34: =SUM(C34:C35)/2 -> 79.95 | I34: =SUM(D34:D35)/2 -> 76.7 | J34: =IF('ROAR TH'!$I$5="x",H34,"") -> 79.95 | K34: =IF('ROAR TH'!$I$5="x",I34,"") -> 76.7 | M34: =M33 -> 1.625 | N34: =N33 -> 38.84809704 | Q34: =Q33 -> 616.2 | R34: 308.1 | S34: -308.1 | T34: -1.250555215e-12 | U34: 308.1 | V34: -308.1
A35: =A38+1 -> 20 | B35: =B32+1 -> 6 | C35: =Panels!C$65 -> 76.7 | D35: =Panels!D$65 -> 76.7 | F35: =IF('ROAR TH'!$I$6="x",C35,0) -> 76.7 | G35: =IF('ROAR TH'!$I$6="x",D35,0) -> 76.7 | J35: =J34 -> 79.95 | K35: =K34 -> 76.7 | M35: =M34 -> 1.625 | N35: =N34 -> 38.84809704 | Q35: =Q34 -> 616.2 | R35: 308.1 | S35: -308.1 | T35: -1.250555215e-12 | U35: 308.1 | V35: -308.1
J36: =J35 -> 79.95 | K36: =K35 -> 76.7 | M36: =((H34-H31)^2+(I34-I31)^2)^0.5 -> 68.4 | N36: =N33+M36 -> 107.248097 | O36: =$O$14 -> 47.4 | P36: 2 | Q36: =((C34-C35)^2+(D34-D35)^2)^0.5*O36*P36 -> 616.2 | R36: 308.1 | S36: -308.1 | T36: -1.250555215e-12 | U36: 308.1 | V36: -308.1
C37: =C34 -> 83.2 | D37: =(D35+Panels!D42)/2 -> 79.95 | F37: =IF('ROAR TH'!$I$6="x",C37,0) -> 83.2 | G37: =IF('ROAR TH'!$I$6="x",D37,0) -> 79.95 | H37: =SUM(C37:C38)/2 -> 79.95 | I37: =SUM(D37:D38)/2 -> 78.325 | J37: =IF('ROAR TH'!$I$5="x",H37,"") -> 79.95 | K37: =IF('ROAR TH'!$I$5="x",I37,"") -> 78.325 | M37: =M36 -> 68.4 | N37: =N36 -> 107.248097 | Q37: =Q36 -> 616.2 | R37: 308.1 | S37: -308.1 | T37: -1.250555215e-12 | U37: 308.1 | V37: -308.1
A38: =A41+1 -> 19 | B38: =B35+1 -> 7 | C38: =C35 -> 76.7 | D38: =D35 -> 76.7 | F38: =IF('ROAR TH'!$I$6="x",C38,0) -> 76.7 | G38: =IF('ROAR TH'!$I$6="x",D38,0) -> 76.7 | J38: =J37 -> 79.95 | K38: =K37 -> 78.325 | M38: =M37 -> 68.4 | N38: =N37 -> 107.248097 | Q38: =Q37 -> 616.2 | R38: 308.1 | S38: -308.1 | T38: -1.250555215e-12 | U38: 308.1 | V38: -308.1
J39: =J38 -> 79.95 | K39: =K38 -> 78.325 | M39: =((H37-H34)^2+(I37-I34)^2)^0.5 -> 1.625 | N39: =N36+M39 -> 108.873097 | O39: =$O$14 -> 47.4 | P39: 2 | Q39: =((C37-C38)^2+(D37-D38)^2)^0.5*O39*P39 -> 688.9325439 | R39: 344.4662719 | S39: -344.4662719 | T39: -72.73254387 | U39: 308.1 | V39: -308.1
C40: =(C37+C38)/2 -> 79.95 | D40: =Panels!D42 -> 83.2 | F40: =IF('ROAR TH'!$I$6="x",C40,0) -> 79.95 | G40: =IF('ROAR TH'!$I$6="x",D40,0) -> 83.2 | H40: =SUM(C40:C41)/2 -> 78.325 | I40: =SUM(D40:D41)/2 -> 79.95 | J40: =IF('ROAR TH'!$I$5="x",H40,"") -> 78.325 | K40: =IF('ROAR TH'!$I$5="x",I40,"") -> 79.95 | M40: =M39 -> 1.625 | N40: =N39 -> 108.873097 | Q40: =Q39 -> 688.9325439 | R40: 344.4662719 | S40: -344.4662719 | T40: -72.73254387 | U40: 308.1 | V40: -308.1
A41: =A44+1 -> 18 | B41: =B38+1 -> 8 | C41: =C38 -> 76.7 | D41: =D38 -> 76.7 | F41: =IF('ROAR TH'!$I$6="x",C41,0) -> 76.7 | G41: =IF('ROAR TH'!$I$6="x",D41,0) -> 76.7 | J41: =J40 -> 78.325 | K41: =K40 -> 79.95 | M41: =M40 -> 1.625 | N41: =N40 -> 108.873097 | Q41: =Q40 -> 688.9325439 | R41: 344.4662719 | S41: -344.4662719 | T41: -72.73254387 | U41: 308.1 | V41: -308.1
J42: =J41 -> 78.325 | K42: =K41 -> 79.95 | M42: =((H40-H37)^2+(I40-I37)^2)^0.5 -> 2.298097039 | N42: =N39+M42 -> 111.1711941 | O42: =$O$14 -> 47.4 | P42: 2 | Q42: =((C40-C41)^2+(D40-D41)^2)^0.5*O42*P42 -> 688.9325439 | R42: 344.4662719 | S42: -344.4662719 | T42: -72.73254387 | U42: 308.1 | V42: -308.1
C43: =C41 -> 76.7 | D43: =D40 -> 83.2 | F43: =IF('ROAR TH'!$I$6="x",C43,0) -> 76.7 | G43: =IF('ROAR TH'!$I$6="x",D43,0) -> 83.2 | H43: =SUM(C43:C44)/2 -> 76.7 | I43: =SUM(D43:D44)/2 -> 79.95 | J43: =IF('ROAR TH'!$I$5="x",H43,"") -> 76.7 | K43: =IF('ROAR TH'!$I$5="x",I43,"") -> 79.95 | M43: =M39 -> 1.625 | N43: =N42 -> 111.1711941 | Q43: =Q42 -> 688.9325439 | R43: 344.4662719 | S43: -344.4662719 | T43: -72.73254387 | U43: 308.1 | V43: -308.1
A44: =A47+1 -> 17 | B44: =B41+1 -> 9 | C44: =C41 -> 76.7 | D44: =D41 -> 76.7 | F44: =IF('ROAR TH'!$I$6="x",C44,0) -> 76.7 | G44: =IF('ROAR TH'!$I$6="x",D44,0) -> 76.7 | J44: =J43 -> 76.7 | K44: =K43 -> 79.95 | M44: =M43 -> 1.625 | N44: =N43 -> 111.1711941 | Q44: 688.9325439 | R44: 344.4662719 | S44: -344.4662719 | T44: -72.73254387 | U44: 308.1 | V44: -308.1
J45: =J44 -> 76.7 | K45: =K44 -> 79.95 | M45: =((H43-H40)^2+(I43-I40)^2)^0.5 -> 1.625 | N45: =N42+M45 -> 112.7961941 | O45: =$O$14 -> 47.4 | P45: 2 | Q45: =((C43-C44)^2+(D43-D44)^2)^0.5*O45*P45 -> 616.2 | R45: 308.1 | S45: -308.1 | T45: 1.364242053e-12 | U45: 308.1 | V45: -308.1
C46: =(C43+C49)/2 -> 75.8 | D46: =D44 -> 76.7 | F46: =IF('ROAR TH'!$I$6="x",C46,0) -> 75.8 | G46: =IF('ROAR TH'!$I$6="x",D46,0) -> 76.7 | H46: =SUM(C46:C47)/2 -> 75.8 | I46: =SUM(D46:D47)/2 -> 79.95 | J46: =IF('ROAR TH'!$I$5="x",H46,"") -> 75.8 | K46: =IF('ROAR TH'!$I$5="x",I46,"") -> 79.95 | M46: =M45 -> 1.625 | N46: =N45 -> 112.7961941 | Q46: =Q45 -> 616.2 | R46: 308.1 | S46: -308.1 | T46: 1.364242053e-12 | U46: 308.1 | V46: -308.1
A47: =A50+1 -> 16 | B47: =B44+1 -> 10 | C47: =(C44+C50)/2 -> 75.8 | D47: =D43 -> 83.2 | F47: =IF('ROAR TH'!$I$6="x",C47,0) -> 75.8 | G47: =IF('ROAR TH'!$I$6="x",D47,0) -> 83.2 | J47: =J46 -> 75.8 | K47: =K46 -> 79.95 | M47: =M46 -> 1.625 | N47: =N46 -> 112.7961941 | Q47: 616.2 | R47: 308.1 | S47: -308.1 | T47: 1.364242053e-12 | U47: 308.1 | V47: -308.1
J48: =J47 -> 75.8 | K48: =K47 -> 79.95 | M48: =((H46-H43)^2+(I46-I43)^2)^0.5 -> 0.9 | N48: =N45+M48 -> 113.6961941 | O48: =$O$14 -> 47.4 | P48: 2 | Q48: =((C46-C47)^2+(D46-D47)^2)^0.5*O48*P48 -> 616.2 | R48: 308.1 | S48: -308.1 | T48: 1.364242053e-12 | U48: 308.1 | V48: -308.1
C49: =Panels!C$64 -> 74.9 | D49: =Panels!D$64 -> 76.7 | F49: =IF('ROAR TH'!$I$6="x",C49,0) -> 74.9 | G49: =IF('ROAR TH'!$I$6="x",D49,0) -> 76.7 | H49: =SUM(C49:C50)/2 -> 74.9 | I49: =SUM(D49:D50)/2 -> 79.95 | J49: =IF('ROAR TH'!$I$5="x",H49,"") -> 74.9 | K49: =IF('ROAR TH'!$I$5="x",I49,"") -> 79.95 | M49: =M48 -> 0.9 | N49: =N48 -> 113.6961941 | Q49: =Q48 -> 616.2 | R49: 308.1 | S49: -308.1 | T49: 1.364242053e-12 | U49: 308.1 | V49: -308.1
A50: =A53+1 -> 15 | B50: =B47+1 -> 11 | C50: =C49 -> 74.9 | D50: =D43 -> 83.2 | F50: =IF('ROAR TH'!$I$6="x",C50,0) -> 74.9 | G50: =IF('ROAR TH'!$I$6="x",D50,0) -> 83.2 | J50: =J49 -> 74.9 | K50: =K49 -> 79.95 | M50: =M49 -> 0.9 | N50: =N49 -> 113.6961941 | Q50: 616.2 | R50: 308.1 | S50: -308.1 | T50: 1.364242053e-12 | U50: 308.1 | V50: -308.1
J51: =J50 -> 74.9 | K51: =K50 -> 79.95 | M51: =((H49-H46)^2+(I49-I46)^2)^0.5 -> 0.9 | N51: =N48+M51 -> 114.5961941 | O51: =$O$14 -> 47.4 | P51: 2 | Q51: =((C49-C50)^2+(D49-D50)^2)^0.5*O51*P51 -> 616.2 | R51: 308.1 | S51: -308.1 | T51: 1.364242053e-12 | U51: 308.1 | V51: -308.1
C52: =C55 -> 74.9 | D52: =D55 -> 76.7 | F52: =IF('ROAR TH'!$I$6="x",C52,0) -> 74.9 | G52: =IF('ROAR TH'!$I$6="x",D52,0) -> 76.7 | H52: =SUM(C52:C53)/2 -> 73.275 | I52: =SUM(D52:D53)/2 -> 79.95 | J52: =IF('ROAR TH'!$I$5="x",H52,"") -> 73.275 | K52: =IF('ROAR TH'!$I$5="x",I52,"") -> 79.95 | M52: =M51 -> 0.9 | N52: =N51 -> 114.5961941 | Q52: =Q51 -> 616.2 | R52: 308.1 | S52: -308.1 | T52: 1.364242053e-12 | U52: 308.1 | V52: -308.1
A53: =A56+1 -> 14 | B53: =B50+1 -> 12 | C53: =(C52+C56)/2 -> 71.65 | D53: =D50 -> 83.2 | F53: =IF('ROAR TH'!$I$6="x",C53,0) -> 71.65 | G53: =IF('ROAR TH'!$I$6="x",D53,0) -> 83.2 | J53: =J52 -> 73.275 | K53: =K52 -> 79.95 | M53: =M52 -> 0.9 | N53: =N52 -> 114.5961941 | Q53: 616.2 | R53: 308.1 | S53: -308.1 | T53: 1.364242053e-12 | U53: 308.1 | V53: -308.1
J54: =J53 -> 73.275 | K54: =K53 -> 79.95 | M54: =((H52-H49)^2+(I52-I49)^2)^0.5 -> 1.625 | N54: =N51+M54 -> 116.2211941 | O54: =$O$14 -> 47.4 | P54: 2 | Q54: =((C52-C53)^2+(D52-D53)^2)^0.5*O54*P54 -> 688.9325439 | R54: 344.4662719 | S54: -344.4662719 | T54: -72.73254387 | U54: 308.1 | V54: -308.1
C55: =C58 -> 74.9 | D55: =D58 -> 76.7 | F55: =IF('ROAR TH'!$I$6="x",C55,0) -> 74.9 | G55: =IF('ROAR TH'!$I$6="x",D55,0) -> 76.7 | H55: =SUM(C55:C56)/2 -> 71.65 | I55: =SUM(D55:D56)/2 -> 78.325 | J55: =IF('ROAR TH'!$I$5="x",H55,"") -> 71.65 | K55: =IF('ROAR TH'!$I$5="x",I55,"") -> 78.325 | M55: =M54 -> 1.625 | N55: =N54 -> 116.2211941 | Q55: =Q54 -> 688.9325439 | R55: 344.4662719 | S55: -344.4662719 | T55: -72.73254387 | U55: 308.1 | V55: -308.1
A56: =A59+1 -> 13 | B56: =B53+1 -> 13 | C56: =C59 -> 68.4 | D56: =(D50+D59)/2 -> 79.95 | F56: =IF('ROAR TH'!$I$6="x",C56,0) -> 68.4 | G56: =IF('ROAR TH'!$I$6="x",D56,0) -> 79.95 | J56: =J55 -> 71.65 | K56: =K55 -> 78.325 | M56: =M55 -> 1.625 | N56: =N55 -> 116.2211941 | Q56: 688.9325439 | R56: 344.4662719 | S56: -344.4662719 | T56: -72.73254387 | U56: 308.1 | V56: -308.1
J57: =J56 -> 71.65 | K57: =K56 -> 78.325 | M57: =((H55-H52)^2+(I55-I52)^2)^0.5 -> 2.298097039 | N57: =N54+M57 -> 118.5192911 | O57: =$O$14 -> 47.4 | P57: 2 | Q57: =((C55-C56)^2+(D55-D56)^2)^0.5*O57*P57 -> 688.9325439 | R57: 344.4662719 | S57: -344.4662719 | T57: -72.73254387 | U57: 308.1 | V57: -308.1
C58: =C49 -> 74.9 | D58: =D49 -> 76.7 | F58: =IF('ROAR TH'!$I$6="x",C58,0) -> 74.9 | G58: =IF('ROAR TH'!$I$6="x",D58,0) -> 76.7 | H58: =SUM(C58:C59)/2 -> 71.65 | I58: =SUM(D58:D59)/2 -> 76.7 | J58: =IF('ROAR TH'!$I$5="x",H58,"") -> 71.65 | K58: =IF('ROAR TH'!$I$5="x",I58,"") -> 76.7 | M58: =M57 -> 2.298097039 | N58: =N57 -> 118.5192911 | Q58: =Q57 -> 688.9325439 | R58: 344.4662719 | S58: -344.4662719 | T58: -72.73254387 | U58: 308.1 | V58: -308.1
A59: =A62+1 -> 12 | B59: =B56+1 -> 14 | C59: =C64 -> 68.4 | D59: =D58 -> 76.7 | F59: =IF('ROAR TH'!$I$6="x",C59,0) -> 68.4 | G59: =IF('ROAR TH'!$I$6="x",D59,0) -> 76.7 | J59: =J58 -> 71.65 | K59: =K58 -> 76.7 | M59: =M58 -> 2.298097039 | N59: =N58 -> 118.5192911 | Q59: 688.9325439 | R59: 344.4662719 | S59: -344.4662719 | T59: -72.73254387 | U59: 308.1 | V59: -308.1
J60: =J59 -> 71.65 | K60: =K59 -> 76.7 | M60: =((H58-H55)^2+(I58-I55)^2)^0.5 -> 1.625 | N60: =N57+M60 -> 120.1442911 | O60: =$O$14 -> 47.4 | P60: 2 | Q60: =((C58-C59)^2+(D58-D59)^2)^0.5*O60*P60 -> 616.2 | R60: 308.1 | S60: -308.1 | T60: 1.136868377e-13 | U60: 308.1 | V60: -308.1
C61: =C64 -> 68.4 | D61: =(D58+D64)/2 -> 50.10160691 | F61: =IF('ROAR TH'!$I$6="x",C61,0) -> 68.4 | G61: =IF('ROAR TH'!$I$6="x",D61,0) -> 50.10160691 | H61: =SUM(C61:C62)/2 -> 71.65 | I61: =SUM(D61:D62)/2 -> 50.10160691 | J61: =IF('ROAR TH'!$I$5="x",H61,"") -> 71.65 | K61: =IF('ROAR TH'!$I$5="x",I61,"") -> 50.10160691 | M61: =M60 -> 1.625 | N61: =N60 -> 120.1442911 | Q61: =Q60 -> 616.2 | R61: 308.1 | S61: -308.1 | T61: 1.136868377e-13 | U61: 308.1 | V61: -308.1
A62: =A65+1 -> 11 | B62: =B59+1 -> 15 | C62: =C58 -> 74.9 | D62: =D61 -> 50.10160691 | F62: =IF('ROAR TH'!$I$6="x",C62,0) -> 74.9 | G62: =IF('ROAR TH'!$I$6="x",D62,0) -> 50.10160691 | J62: =J61 -> 71.65 | K62: =K61 -> 50.10160691 | M62: =M61 -> 1.625 | N62: =N61 -> 120.1442911 | Q62: 616.2 | R62: 308.1 | S62: -308.1 | T62: 1.136868377e-13 | U62: 308.1 | V62: -308.1
J63: =J62 -> 71.65 | K63: =K62 -> 50.10160691 | M63: =((H61-H58)^2+(I61-I58)^2)^0.5 -> 26.59839309 | N63: =N60+M63 -> 146.7426842 | O63: =$O$14 -> 47.4 | P63: 2 | Q63: =((C61-C62)^2+(D61-D62)^2)^0.5*O63*P63 -> 616.2 | R63: 308.1 | S63: -308.1 | T63: 1.136868377e-13 | U63: 308.1 | V63: -308.1
C64: =C73 -> 68.4 | D64: =D73 -> 23.50321383 | F64: =IF('ROAR TH'!$I$6="x",C64,0) -> 68.4 | G64: =IF('ROAR TH'!$I$6="x",D64,0) -> 23.50321383 | H64: =SUM(C64:C65)/2 -> 71.65 | I64: =SUM(D64:D65)/2 -> 23.50321383 | J64: =IF('ROAR TH'!$I$5="x",H64,"") -> 71.65 | K64: =IF('ROAR TH'!$I$5="x",I64,"") -> 23.50321383 | M64: =M63 -> 26.59839309 | N64: =N63 -> 146.7426842 | Q64: =Q63 -> 616.2 | R64: 308.1 | S64: -308.1 | T64: 1.136868377e-13 | U64: 308.1 | V64: -308.1
A65: =A68+1 -> 10 | B65: =B62+1 -> 16 | C65: =C50 -> 74.9 | D65: =D64 -> 23.50321383 | E65: S3 | F65: =IF('ROAR TH'!$I$6="x",C65,0) -> 74.9 | G65: =IF('ROAR TH'!$I$6="x",D65,0) -> 23.50321383 | J65: =J64 -> 71.65 | K65: =K64 -> 23.50321383 | M65: =M64 -> 26.59839309 | N65: =N64 -> 146.7426842 | Q65: 616.2 | R65: 308.1 | S65: -308.1 | T65: 1.136868377e-13 | U65: 308.1 | V65: -308.1
J66: =J65 -> 71.65 | K66: =K65 -> 23.50321383 | M66: =((H64-H61)^2+(I64-I61)^2)^0.5 -> 26.59839309 | N66: =N63+M66 -> 173.3410773 | O66: =$O$14 -> 47.4 | P66: 2 | Q66: =((C64-C65)^2+(D64-D65)^2)^0.5*O66*P66 -> 616.2 | R66: 308.1 | S66: -308.1 | T66: 1.136868377e-13 | U66: 308.1 | V66: -308.1
C67: =C70 -> 68.4 | D67: =D70 -> 23.50321383 | F67: =IF('ROAR TH'!$I$6="x",C67,0) -> 68.4 | G67: =IF('ROAR TH'!$I$6="x",D67,0) -> 23.50321383 | H67: =SUM(C67:C68)/2 -> 71.65 | I67: =SUM(D67:D68)/2 -> 20.15241037 | J67: =IF('ROAR TH'!$I$5="x",H67,"") -> 71.65 | K67: =IF('ROAR TH'!$I$5="x",I67,"") -> 20.15241037 | M67: =M66 -> 26.59839309 | N67: =N66 -> 173.3410773 | Q67: =Q66 -> 616.2 | R67: 308.1 | S67: -308.1 | T67: 0 | U67: =(($D$10-$D$9)*(N67-$E$9)/($E$10-$E$9)+$D$9)/2 -> 308.1 | V67: -308.1
A68: =A71+1 -> 9 | B68: =B65+1 -> 17 | C68: =C65 -> 74.9 | D68: =(D65+D71)/2 -> 16.80160691 | F68: =IF('ROAR TH'!$I$6="x",C68,0) -> 74.9 | G68: =IF('ROAR TH'!$I$6="x",D68,0) -> 16.80160691 | J68: =J67 -> 71.65 | K68: =K67 -> 20.15241037 | M68: =M67 -> 26.59839309 | N68: =N67 -> 173.3410773 | Q68: 616.2 | R68: 308.1 | S68: -308.1 | T68: 0 | U68: 308.1 | V68: -308.1
J69: =J68 -> 71.65 | K69: =K68 -> 20.15241037 | M69: =((H67-H64)^2+(I67-I64)^2)^0.5 -> 3.350803457 | N69: =N66+M69 -> 176.6918807 | O69: =$O$14 -> 47.4 | P69: 2 | Q69: =((C67-C68)^2+(D67-D68)^2)^0.5*O69*P69 -> 885.0560455 | R69: 442.5280227 | S69: -442.5280227 | T69: -60.01024661 | U69: 412.5228994 | V69: -412.5228994
C70: =C73 -> 68.4 | D70: =D73 -> 23.50321383 | F70: =IF('ROAR TH'!$I$6="x",C70,0) -> 68.4 | G70: =IF('ROAR TH'!$I$6="x",D70,0) -> 23.50321383 | H70: =SUM(C70:C71)/2 -> 70.025 | I70: =SUM(D70:D71)/2 -> 16.80160691 | J70: =IF('ROAR TH'!$I$5="x",H70,"") -> 70.025 | K70: =IF('ROAR TH'!$I$5="x",I70,"") -> 16.80160691 | M70: =M69 -> 3.350803457 | N70: =N69 -> 176.6918807 | Q70: =Q69 -> 885.0560455 | R70: 442.5280227 | S70: -442.5280227 | T70: -60.01024661 | U70: =(($D$10-$D$9)*(N70-$E$9)/($E$10-$E$9)+$D$9)/2 -> 412.5228994 | V70: -412.5228994
A71: =A74+1 -> 8 | B71: =B68+1 -> 18 | C71: =(C74+C65)/2 -> 71.65 | D71: =D74 -> 10.1 | F71: =IF('ROAR TH'!$I$6="x",C71,0) -> 71.65 | G71: =IF('ROAR TH'!$I$6="x",D71,0) -> 10.1 | J71: =J70 -> 70.025 | K71: =K70 -> 16.80160691 | M71: =M70 -> 3.350803457 | N71: =N70 -> 176.6918807 | Q71: 885.0560455 | R71: 442.5280227 | S71: -442.5280227 | T71: -60.01024661 | U71: 412.5228994 | V71: -412.5228994
J72: =J71 -> 70.025 | K72: =K71 -> 16.80160691 | M72: =((H70-H67)^2+(I70-I67)^2)^0.5 -> 3.724044684 | N72: =N69+M72 -> 180.4159254 | O72: =$O$14 -> 47.4 | P72: 2 | Q72: =((C70-C71)^2+(D70-D71)^2)^0.5*O72*P72 -> 1307.44509 | R72: 653.7225452 | S72: -653.7225452 | T72: -250.2904565 | U72: 528.577317 | V72: -528.577317
C73: =Panels!C71 -> 68.4 | D73: =Panels!D71 -> 23.50321383 | F73: =IF('ROAR TH'!$I$6="x",C73,0) -> 68.4 | G73: =IF('ROAR TH'!$I$6="x",D73,0) -> 23.50321383 | H73: =SUM(C73:C74)/2 -> 68.4 | I73: =SUM(D73:D74)/2 -> 16.80160691 | J73: =IF('ROAR TH'!$I$5="x",H73,"") -> 68.4 | K73: =IF('ROAR TH'!$I$5="x",I73,"") -> 16.80160691 | M73: =M72 -> 3.724044684 | N73: =N72 -> 180.4159254 | Q73: 1307.44509 | R73: 653.7225452 | S73: -653.7225452 | T73: -250.2904565 | U73: =(($D$10-$D$9)*(N73-$E$9)/($E$10-$E$9)+$D$9)/2 -> 528.577317 | V73: -528.577317
A74: =A77+1 -> 7 | B74: =B71+1 -> 19 | C74: =C73 -> 68.4 | D74: =Panels!$D$52 -> 10.1 | F74: =IF('ROAR TH'!$I$6="x",C74,0) -> 68.4 | G74: =IF('ROAR TH'!$I$6="x",D74,0) -> 10.1 | J74: =J73 -> 68.4 | K74: =K73 -> 16.80160691 | M74: =M73 -> 3.724044684 | N74: =N73 -> 180.4159254 | Q74: 1307.44509 | R74: 653.7225452 | S74: -653.7225452 | T74: -250.2904565 | U74: 528.577317 | V74: -528.577317
J75: =J74 -> 68.4 | K75: =K74 -> 16.80160691 | M75: =((H73-H70)^2+(I73-I70)^2)^0.5 -> 1.625 | N75: =N72+M75 -> 182.0409254 | O75: =$O$14 -> 47.4 | P75: 2 | Q75: =((C73-C74)^2+(D73-D74)^2)^0.5*O75*P75 -> 1270.624671 | R75: 635.3123355 | S75: -635.3123355 | T75: -112.1885302 | U75: 579.2180704 | V75: -579.2180704
C76: =Panels!C41 -> 66.6 | D76: =D73 -> 23.50321383 | F76: =IF('ROAR TH'!$I$6="x",C76,0) -> 66.6 | G76: =IF('ROAR TH'!$I$6="x",D76,0) -> 23.50321383 | H76: =SUM(C76:C77)/2 -> 66.6 | I76: =SUM(D76:D77)/2 -> 16.80160691 | J76: =IF('ROAR TH'!$I$5="x",H76,"") -> 66.6 | K76: =IF('ROAR TH'!$I$5="x",I76,"") -> 16.80160691 | M76: =M75 -> 1.625 | N76: =N75 -> 182.0409254 | Q76: 1270.624671 | R76: 635.3123355 | S76: -635.3123355 | T76: -112.1885302 | U76: =(($D$10-$D$9)*(N76-$E$9)/($E$10-$E$9)+$D$9)/2 -> 579.2180704 | V76: -579.2180704
A77: =A80+1 -> 6 | B77: =B74+1 -> 20 | C77: =C76 -> 66.6 | D77: =Panels!D52 -> 10.1 | F77: =IF('ROAR TH'!$I$6="x",C77,0) -> 66.6 | G77: =IF('ROAR TH'!$I$6="x",D77,0) -> 10.1 | J77: =J76 -> 66.6 | K77: =K76 -> 16.80160691 | M77: =M76 -> 1.625 | N77: =N76 -> 182.0409254 | Q77: 1270.624671 | R77: 635.3123355 | S77: -635.3123355 | T77: -112.1885302 | U77: 579.2180704 | V77: -579.2180704
J78: =J77 -> 66.6 | K78: =K77 -> 16.80160691 | M78: =((H76-H73)^2+(I76-I73)^2)^0.5 -> 1.8 | N78: =N75+M78 -> 183.8409254 | O78: =$O$14 -> 47.4 | P78: 2 | Q78: =((C76-C77)^2+(D76-D77)^2)^0.5*O78*P78 -> 1270.624671 | R78: 635.3123355 | S78: -635.3123355 | T78: 0.0002157623373 | U78: 635.3124434 | V78: -635.3124434
C79: =(Panels!C81+C76)/2 -> 54.55 | D79: =D77 -> 10.1 | F79: =IF('ROAR TH'!$I$6="x",C79,0) -> 54.55 | G79: =IF('ROAR TH'!$I$6="x",D79,0) -> 10.1 | H79: =SUM(C79:C80)/2 -> 60.575 | I79: =SUM(D79:D80)/2 -> 16.80160691 | J79: =IF('ROAR TH'!$I$5="x",H79,"") -> 60.575 | K79: =IF('ROAR TH'!$I$5="x",I79,"") -> 16.80160691 | M79: =M78 -> 1.8 | N79: =N78 -> 183.8409254 | Q79: 1270.624671 | R79: 635.3123355 | S79: -635.3123355 | T79: 0.0002157623373 | U79: =(($D$10-$D$9)*(N79-$E$9)/($E$10-$E$9)+$D$9)/2 -> 635.3124434 | V79: -635.3124434
A80: =A83+1 -> 5 | B80: =B77+1 -> 21 | C80: =C76 -> 66.6 | D80: =D76 -> 23.50321383 | F80: =IF('ROAR TH'!$I$6="x",C80,0) -> 66.6 | G80: =IF('ROAR TH'!$I$6="x",D80,0) -> 23.50321383 | J80: =J79 -> 60.575 | K80: =K79 -> 16.80160691 | M80: =M79 -> 1.8 | N80: =N79 -> 183.8409254 | Q80: 1270.624671 | R80: 635.3123355 | S80: -635.3123355 | T80: 0.0002157623373 | U80: 635.3124434 | V80: -635.3124434
J81: =J80 -> 60.575 | K81: =K80 -> 16.80160691 | M81: =((H79-H76)^2+(I79-I76)^2)^0.5 -> 6.025 | N81: =N78+M81 -> 189.8659254 | O81: =$O$14 -> 47.4 | P81: 2 | Q81: =((C79-C80)^2+(D79-D80)^2)^0.5*O81*P81 -> 1708.633293 | R81: 854.3166465 | S81: -854.3166465 | T81: -62.48774262 | U81: 823.0727752 | V81: -823.0727752
C82: =C85 -> 42.5 | D82: =(D79+D83)/2 -> 16.80160691 | F82: =IF('ROAR TH'!$I$6="x",C82,0) -> 42.5 | G82: =IF('ROAR TH'!$I$6="x",D82,0) -> 16.80160691 | H82: =SUM(C82:C83)/2 -> 54.55 | I82: =SUM(D82:D83)/2 -> 20.15241037 | J82: =IF('ROAR TH'!$I$5="x",H82,"") -> 54.55 | K82: =IF('ROAR TH'!$I$5="x",I82,"") -> 20.15241037 | M82: =M81 -> 6.025 | N82: =N81 -> 189.8659254 | Q82: 1708.633293 | R82: =Q82/2 -> 854.3166465 | S82: =-R82 -> -854.3166465 | T82: =(U82-R82)*2 -> -62.48774262 | U82: =(($D$10-$D$9)*(N82-$E$9)/($E$10-$E$9)+$D$9)/2 -> 823.0727752 | V82: =-U82 -> -823.0727752
A83: =A86+1 -> 4 | B83: =B80+1 -> 22 | C83: =C77 -> 66.6 | D83: =D80 -> 23.50321383 | F83: =IF('ROAR TH'!$I$6="x",C83,0) -> 66.6 | G83: =IF('ROAR TH'!$I$6="x",D83,0) -> 23.50321383 | J83: =J82 -> 54.55 | K83: =K82 -> 20.15241037 | M83: =M82 -> 6.025 | N83: =N82 -> 189.8659254 | Q83: 1708.633293 | R83: 854.3166465 | S83: -854.3166465 | T83: -62.48774262 | U83: 823.0727752 | V83: -823.0727752
J84: =J83 -> 54.55 | K84: =K83 -> 20.15241037 | M84: =((H82-H79)^2+(I82-I79)^2)^0.5 -> 6.894092312 | N84: =N81+M84 -> 196.7600177 | O84: =$O$14 -> 47.4 | P84: 2 | Q84: =((C82-C83)^2+(D82-D83)^2)^0.5*O84*P84 -> 2371.367636 | R84: 1185.683818 | S84: -1185.683818 | T84: -295.5334351 | U84: 1037.917101 | V84: -1037.917101
C85: =Panels!C82 -> 42.5 | D85: =D83 -> 23.50321383 | F85: =IF('ROAR TH'!$I$6="x",C85,0) -> 42.5 | G85: =IF('ROAR TH'!$I$6="x",D85,0) -> 23.50321383 | H85: =SUM(C85:C86)/2 -> 54.55 | I85: =SUM(D85:D86)/2 -> 23.50321383 | J85: =IF('ROAR TH'!$I$5="x",H85,"") -> 54.55 | K85: =IF('ROAR TH'!$I$5="x",I85,"") -> 23.50321383 | M85: =M84 -> 6.894092312 | N85: =N84 -> 196.7600177 | Q85: 2371.367636 | R85: =Q85/2 -> 1185.683818 | S85: =-R85 -> -1185.683818 | T85: =(U85-R85)*2 -> -295.5334351 | U85: =(($D$10-$D$9)*(N85-$E$9)/($E$10-$E$9)+$D$9)/2 -> 1037.917101 | V85: =-U85 -> -1037.917101
A86: =A89+1 -> 3 | B86: =B83+1 -> 23 | C86: =C83 -> 66.6 | D86: =D83 -> 23.50321383 | E86: S4 | F86: =IF('ROAR TH'!$I$6="x",C86,0) -> 66.6 | G86: =IF('ROAR TH'!$I$6="x",D86,0) -> 23.50321383 | J86: =J85 -> 54.55 | K86: =K85 -> 23.50321383 | M86: =M85 -> 6.894092312 | N86: =N85 -> 196.7600177 | Q86: 2371.367636 | R86: 1185.683818 | S86: -1185.683818 | T86: -295.5334351 | U86: 1037.917101 | V86: -1037.917101
J87: =J86 -> 54.55 | K87: =K86 -> 23.50321383 | M87: =((H85-H82)^2+(I85-I82)^2)^0.5 -> 3.350803457 | N87: =N84+M87 -> 200.1108212 | O87: =$O$14 -> 47.4 | P87: 2 | Q87: =((C85-C86)^2+(D85-D86)^2)^0.5*O87*P87 -> 2284.68 | R87: 1142.34 | S87: -1142.34 | T87: 0 | U87: 1142.34 | V87: -1142.34
C88: =(C85+C91)/2 -> 42.5 | D88: =(D85+D91)/2 -> 54.25160691 | F88: =IF('ROAR TH'!$I$6="x",C88,0) -> 42.5 | G88: =IF('ROAR TH'!$I$6="x",D88,0) -> 54.25160691 | H88: =SUM(C88:C89)/2 -> 54.55 | I88: =SUM(D88:D89)/2 -> 54.25160691 | J88: =IF('ROAR TH'!$I$5="x",H88,"") -> 54.55 | K88: =IF('ROAR TH'!$I$5="x",I88,"") -> 54.25160691 | M88: =M87 -> 3.350803457 | N88: =N87 -> 200.1108212 | Q88: 2284.68 | R88: 1142.34 | S88: -1142.34 | T88: 0 | U88: =(($D$11-$D$10)*(N88-$E$10)/($E$11-$E$10)+$D$10)/2 -> 1142.34 | V88: -1142.34
A89: =A92+1 -> 2 | B89: =B86+1 -> 24 | C89: =(C86+C92)/2 -> 66.6 | D89: =(D86+D92)/2 -> 54.25160691 | F89: =IF('ROAR TH'!$I$6="x",C89,0) -> 66.6 | G89: =IF('ROAR TH'!$I$6="x",D89,0) -> 54.25160691 | J89: =J88 -> 54.55 | K89: =K88 -> 54.25160691 | M89: =M88 -> 3.350803457 | N89: =N88 -> 200.1108212 | Q89: 2284.68 | R89: 1142.34 | S89: -1142.34 | T89: 0 | U89: 1142.34 | V89: -1142.34
J90: =J89 -> 54.55 | K90: =K89 -> 54.25160691 | M90: =((H88-H85)^2+(I88-I85)^2)^0.5 -> 30.74839309 | N90: =N87+M90 -> 230.8592143 | O90: =$O$14 -> 47.4 | P90: 2 | Q90: =((C88-C89)^2+(D88-D89)^2)^0.5*O90*P90 -> 2284.68 | R90: 1142.34 | S90: -1142.34 | T90: 0 | U90: 1142.34 | V90: -1142.34
C91: =Panels!C82 -> 42.5 | D91: =Panels!D40 -> 85 | F91: =IF('ROAR TH'!$I$6="x",C91,0) -> 42.5 | G91: =IF('ROAR TH'!$I$6="x",D91,0) -> 85 | H91: =SUM(C91:C92)/2 -> 54.55 | I91: =SUM(D91:D92)/2 -> 85 | J91: =IF('ROAR TH'!$I$5="x",H91,"") -> 54.55 | K91: =IF('ROAR TH'!$I$5="x",I91,"") -> 85 | M91: =M90 -> 30.74839309 | N91: =N90 -> 230.8592143 | Q91: =Q90 -> 2284.68 | R91: 1142.34 | S91: -1142.34 | T91: =(U91-R91)*2 -> 0 | U91: 1142.34 | V91: -1142.34
A92: 1 | B92: =B89+1 -> 25 | C92: =C86 -> 66.6 | D92: =Panels!D40 -> 85 | E92: S5 | F92: =IF('ROAR TH'!$I$6="x",C92,0) -> 66.6 | G92: =IF('ROAR TH'!$I$6="x",D92,0) -> 85 | J92: =J91 -> 54.55 | K92: =K91 -> 85 | M92: =M91 -> 30.74839309 | N92: =N91 -> 230.8592143 | Q92: 2284.68 | R92: 1142.34 | S92: -1142.34 | T92: 0 | U92: 1142.34 | V92: -1142.34
J93: =J92 -> 54.55 | K93: =K92 -> 85 | M93: =((H91-H88)^2+(I91-I88)^2)^0.5 -> 30.74839309 | N93: =N90+M93 -> 261.6076074 | O93: =$O$14 -> 47.4 | P93: 2 | Q93: =((C91-C92)^2+(D91-D92)^2)^0.5*O93*P93 -> 2284.68 | R93: 1142.34 | S93: -1142.34 | T93: 0 | U93: 1142.34 | V93: -1142.34
